bitfinex/quotes_ETHUSD_20241207
["timestamp","ask_amount","ask_price","bid_price","bid_amount"]
[1733554153971,0.86614668,3988.4,3988.1,1.75518]
[1733554154196,1.04807262,3988.6,3988.1,1.75518]
[1733554154502,2.16537095,3988.5,3988.1,1.75518]
[1733554154673,0.86614838,3988.4,3988.1,1.75518]
[1733554154876,1.04807262,3988.5,3988.1,1.75518]
[1733554155073,1.57159464,3988.7,3988.1,1.75518]
[1733554155074,0.8661358,3988.4,3988.1,1.75518]
[1733554155284,1.04807262,3988.5,3988.1,1.75518]
[1733554155464,2.16522429,3988.4,3988.1,1.75518]
[1733554155664,0.86609877,3988.3,3988.1,1.75518]
[1733554155873,1.04807262,3988.5,3988.1,1.75518]
[1733554156092,2.16492258,3988.4,3988.1,1.75518]
[1733554156363,0.86596903,3988.3,3987.6,0.8203]
[1733554156579,1.04807262,3988.5,3987.8,1.75531]
[1733554156799,2.16478665,3988.4,3987.8,1.75531]
[1733554157023,0.86591466,3988.3,3987.8,1.75531]
[1733554157201,1.04807262,3988.4,3987.8,1.75531]
[1733554157402,0.86585187,3988.3,3987.8,1.75531]
[1733554157594,1.04807262,3988.4,3987.8,1.75531]
[1733554157797,2.16442148,3988.3,3987.8,1.75531]
[1733554158096,0.86571944,3988.2,3987.8,1.75531]
[1733554158296,1.11777262,3988.3,3987.8,1.75531]
[1733554158499,0.86567179,3988.2,3987.8,1.75531]
[1733554158715,1.11777262,3988.3,3987.8,1.75531]
[1733554158919,0.86567192,3988.2,3987.8,1.75531]
[1733554159091,1.11777262,3988.3,3987.8,1.75531]
[1733554159292,0.86570537,3988.2,3987.8,1.75531]
[1733554159597,0.0697,3988.3,3987.8,1.75531]
[1733554159800,0.86560733,3988.2,3987.8,1.75531]
[1733554160135,1.11777262,3988.3,3987.8,1.75531]
[1733554160136,0.0697,3988.3,3987.8,1.75531]
[1733554160294,0.86558845,3988.2,3987.8,1.75531]
[1733554160498,1.95105821,3988.1,3987.5,1.75545]
[1733554160822,2.16362602,3988.0,3987.3,2.57587]
[1733554161139,0.86543992,3987.9,3987.3,2.57587]
[1733554161427,1.04807262,3988.0,3987.3,2.57587]
[1733554161634,0.86525865,3987.9,3987.3,2.57587]
[1733554161804,2.44052786,3988.1,3987.3,2.57587]
[1733554161994,2.16312106,3988.0,3987.3,2.57587]
[1733554162195,0.86524842,3987.9,3987.3,2.57587]
[1733554162403,2.44052786,3988.1,3987.3,2.57587]
[1733554162630,2.16259633,3988.0,3987.3,2.57587]
[1733554162820,0.86503853,3987.9,3987.3,2.57587]
[1733554163127,2.44052786,3988.1,3987.4,1.75552]
[1733554163297,0.86507782,3988.0,3987.4,1.75552]
[1733554163495,1.08557216,3988.1,3987.4,1.75552]
[1733554163718,0.86484403,3988.0,3987.4,1.75552]
[1733554163920,1.08557216,3988.1,3987.4,1.75552]
[1733554164091,0.8648698,3988.0,3987.4,1.75552]
[1733554164322,1.08557216,3988.1,3987.4,1.75552]
[1733554166375,1.08557216,3988.1,3987.5,1.75547]
[1733554167054,0.86456037,3988.0,3987.5,1.75547]
[1733554167250,1.08557216,3988.1,3987.5,1.75547]
[1733554170746,1.11777262,3988.3,3987.5,1.75547]
[1733554170928,0.86430843,3988.2,3987.5,1.75547]
[1733554171131,0.0697,3988.3,3987.6,1.75541]
[1733554171331,0.86450616,3988.2,3987.5,0.8203]
[1733554171532,1.04807262,3988.6,3988.0,2.57555]
[1733554171823,0.37749394,3988.5,3988.1,1.75521]
[1733554171976,2.20334478,3988.7,3988.1,1.75521]
[1733554172177,2.16154862,3988.6,3988.1,1.75521]
[1733554172414,0.86461945,3988.5,3988.1,1.75521]
[1733554172716,2.20334478,3988.7,3988.1,1.75521]
[1733554172929,2.1615139,3988.6,3988.1,1.75521]
[1733554173082,2.20334478,3988.7,3988.1,1.75521]
[1733554173285,2.16157577,3988.6,3988.0,0.8203]
[1733554173507,1.04807262,3988.8,3988.0,0.8203]
[1733554173724,0.86475925,3988.7,3988.2,1.75515]
[1733554173901,1.04807262,3988.9,3988.2,1.75515]
[1733554174105,3.21003604,3988.8,3988.2,1.75515]
[1733554174419,2.16203324,3988.7,3988.2,1.75515]
[1733554174623,1.42556656,3988.9,3988.2,1.75515]
[1733554174819,0.86476513,3988.8,3988.2,1.75515]
[1733554175119,1.11777262,3989.0,3988.2,1.75515]
[1733554175287,2.16190978,3988.9,3988.2,1.75515]
[1733554175484,0.86480768,3988.8,3988.2,1.75515]
[1733554175689,1.49526656,3989.0,3988.2,1.75515]
[1733554175999,3.20996337,3988.9,3988.2,1.75515]
[1733554176209,0.8647563,3988.8,3988.2,1.75515]
[1733554176415,1.49526656,3989.0,3988.2,1.75515]
[1733554176734,0.86480783,3988.9,3988.2,1.75515]
[1733554177029,0.44719394,3989.0,3988.2,1.75515]
[1733554177183,0.86485008,3988.9,3988.2,1.75515]
[1733554177381,1.11777262,3989.0,3988.2,1.75515]
[1733554177622,0.8649237,3988.9,3988.2,1.75515]
[1733554177823,1.04807262,3989.1,3988.4,0.7688]
[1733554178127,1.04807262,3989.2,3988.8,1.75491]
[1733554178301,1.15527216,3989.4,3988.8,1.75491]
[1733554178496,1.08557216,3989.4,3988.8,1.75491]
[1733554178715,1.08557216,3989.4,3988.9,0.7688]
[1733554179331,3.20861282,3989.3,3988.9,0.7688]
[1733554179493,2.1625037,3989.2,3988.9,0.7688]
[1733554179827,0.86506727,3989.1,3988.9,0.7688]
[1733554179987,1.04610912,3989.3,3988.9,0.7688]
[1733554180189,2.16267776,3989.2,3988.9,0.7688]
[1733554180390,0.8650711,3989.1,3988.9,0.7688]
[1733554180589,1.79841574,3989.3,3988.9,0.7688]
[1733554180822,2.16286097,3989.2,3988.9,0.7688]
[1733554181125,1.79841574,3989.3,3988.9,0.7688]
[1733554181126,0.86514439,3989.1,3988.9,0.7688]
[1733554181319,1.79841574,3989.3,3988.9,0.7688]
[1733554181523,3.20917437,3989.2,3988.9,0.7688]
[1733554181687,2.1630436,3989.1,3988.9,0.7688]
[1733554181885,1.04610912,3989.2,3988.9,0.7688]
[1733554182093,2.16291982,3989.1,3988.9,0.7688]
[1733554182402,1.04610912,3989.2,3988.9,0.7688]
[1733554182590,2.16310291,3989.1,3988.9,0.7688]
[1733554182795,1.04610912,3989.2,3988.9,0.7688]
[1733554183030,2.16309751,3989.1,3988.9,0.7688]
[1733554183234,1.04610912,3989.2,3988.9,0.7688]
[1733554183409,2.16316756,3989.1,3988.9,0.7688]
[1733554183607,1.04610912,3989.2,3988.9,0.7688]
[1733554183850,2.16285877,3989.1,3988.9,0.7688]
[1733554184030,1.04478047,3989.2,3988.9,0.7688]
[1733554184240,2.1628843,3989.1,3988.9,0.7688]
[1733554184549,2.65473584,3989.4,3988.9,0.7688]
[1733554184762,2.16279176,3989.3,3988.9,0.7688]
[1733554184936,2.16280148,3989.2,3988.9,0.7688]
[1733554185103,1.56916368,3989.7,3988.9,1.021171]
[1733554185308,2.16303773,3989.6,3989.2,1.75471]
[1733554185652,1.08557216,3989.8,3989.2,1.75471]
[1733554185809,2.1627015,3989.7,3989.2,1.75471]
[1733554186154,0.8650806,3989.6,3989.2,1.75471]
[1733554186446,1.08557216,3989.8,3989.2,1.75471]
[1733554186643,2.16242906,3989.7,3989.2,1.75471]
[1733554186945,0.86498703,3989.6,3989.2,1.75471]
[1733554187148,1.08557216,3989.8,3989.2,1.75471]
[1733554187338,2.16243028,3989.7,3989.2,1.75471]
[1733554187546,0.86497211,3989.6,3989.2,1.75471]
[1733554187854,1.08557216,3989.8,3989.2,1.75471]
[1733554188025,1.08557216,3989.8,3988.2,1.08557216]
[1733554188026,0.0697,3989.4,3988.1,1.7552]
[1733554188348,1.08557216,3989.1,3988.2,0.7688]
[1733554189612,1.08557216,3989.1,3988.5,1.755]
[1733554189812,1.08557216,3989.1,3988.2,0.7688]
[1733554190032,1.08557216,3989.1,3988.6,1.75499]
[1733554193129,1.15527216,3989.4,3988.7,1.75495]
[1733554193462,1.15527216,3989.4,3988.8,0.8023]
[1733554194034,1.04554785,3989.6,3989.0,1.75481]
[1733554194234,2.16132832,3989.5,3989.0,1.75481]
[1733554194564,1.04554785,3989.6,3988.8,0.8023]
[1733554194760,1.04554785,3989.6,3988.8,2.5572]
[1733554194761,3.24672134,3989.5,3988.8,2.5572]
[1733554194934,0.86445967,3989.4,3988.8,2.5572]
[1733554195136,2.13112001,3989.5,3988.8,0.8023]
[1733554195329,2.16115606,3989.4,3988.8,0.8023]
[1733554195526,0.86446242,3989.3,3988.6,1.75497]
[1733554195738,2.13112001,3989.5,3988.6,1.75497]
[1733554195943,2.16094121,3989.4,3988.6,1.75497]
[1733554196169,0.86437648,3989.3,3988.6,1.75497]
[1733554196329,2.54581822,3989.5,3988.6,1.75497]
[1733554196524,2.16092095,3989.4,3988.6,1.75497]
[1733554196836,1.08557216,3989.5,3988.7,1.78001791]
[1733554197025,0.86436437,3989.4,3988.7,1.78001791]
[1733554197228,1.08557216,3989.5,3988.7,1.75495]
[1733554197467,0.86438107,3989.4,3988.7,1.75495]
[1733554197639,1.08557216,3989.5,3988.7,1.75491]
[1733554197839,0.86431978,3989.4,3988.7,1.75491]
[1733554198026,1.08557216,3989.5,3988.7,1.75491]
[1733554198225,0.86432231,3989.4,3988.7,1.75491]
[1733554198524,1.08557216,3989.5,3988.8,1.7549]
[1733554199143,0.86424052,3989.4,3988.8,1.7549]
[1733554199365,1.08557216,3989.5,3988.8,1.7549]
[1733554199724,1.42254622,3989.6,3989.0,0.7753]
[1733554199930,0.37699837,3989.6,3989.0,0.7753]
[1733554200324,1.2963444,3989.7,3989.0,0.7753]
[1733554200529,1.08557216,3989.8,3989.1,1.75477]
[1733554200768,2.16042355,3989.7,3989.0,0.7753]
[1733554200941,1.08557216,3989.5,3989.0,0.7753]
[1733554201971,1.15527216,3989.5,3988.8,1.7549]
[1733554202442,1.53227053,3989.5,3988.8,1.7549]
[1733554202644,0.86406487,3989.4,3988.8,1.7549]
[1733554202995,1.53227053,3989.5,3988.8,1.7549]
[1733554203145,0.8640684,3989.4,3988.8,1.7549]
[1733554203358,1.53227053,3989.5,3988.8,1.7549]
[1733554203530,0.86405605,3989.4,3988.8,1.7549]
[1733554203872,2.57781838,3989.5,3988.7,0.7753]
[1733554204054,2.16014945,3989.4,3988.7,2.53022]
[1733554204267,1.15527216,3989.5,3988.7,2.53022]
[1733554204637,1.15527216,3989.5,3988.7,0.7753]
[1733554204835,1.15527216,3989.5,3988.8,1.7549]
[1733554206037,1.15527216,3989.5,3988.9,1.75486]
[1733554206235,1.15527216,3989.5,3988.7,0.7753]
[1733554206236,1.08557216,3989.5,3989.0,1.75481]
[1733554206563,1.04554785,3989.6,3988.8,1.7549]
[1733554206564,1.11524785,3989.6,3988.8,1.7549]
[1733554206752,3.24542506,3989.5,3988.8,1.7549]
[1733554206951,1.08557216,3989.5,3988.8,1.7549]
[1733554208359,0.86413765,3989.4,3988.8,1.7549]
[1733554208552,1.08557216,3989.5,3988.8,1.7549]
[1733554208764,0.86413056,3989.4,3988.8,1.7549]
[1733554209069,1.08557216,3989.5,3988.8,1.7549]
[1733554209303,0.86415173,3989.4,3988.8,1.7549]
[1733554209450,1.08557216,3989.5,3988.8,1.7549]
[1733554209655,1.08557216,3989.5,3988.6,0.0250679]
[1733554209848,1.08557216,3989.5,3988.9,1.75486]
[1733554210056,1.08557216,3989.5,3989.0,0.7568]
[1733554210676,0.86425872,3989.4,3989.0,0.7568]
[1733554210877,1.08557216,3989.5,3989.0,0.7568]
[1733554211449,1.08557216,3989.5,3989.0,2.51159]
[1733554211954,0.86439758,3989.4,3989.0,0.7568]
[1733554212168,2.13112001,3989.5,3989.0,0.7568]
[1733554212169,1.08557216,3989.5,3989.0,0.7568]
[1733554212478,0.93409655,3989.4,3988.8,1.75491]
[1733554212688,0.86452677,3989.3,3988.8,1.75491]
[1733554212854,0.0697,3989.4,3988.8,1.75491]
[1733554213054,0.86460166,3989.3,3988.8,1.75491]
[1733554213290,0.0697,3989.4,3988.8,1.75491]
[1733554213584,0.86484667,3989.3,3988.8,1.75491]
[1733554213889,0.0697,3989.4,3988.8,1.75491]
[1733554214057,0.86485656,3989.3,3988.8,1.75491]
[1733554214258,3.2477724,3989.2,3988.7,0.7568]
[1733554214482,0.86507185,3989.1,3988.7,0.7568]
[1733554214784,1.08557216,3989.2,3988.7,0.7568]
[1733554214944,0.8651767,3989.1,3988.7,0.7568]
[1733554215144,1.08557216,3989.2,3988.7,0.7568]
[1733554215365,0.8654466,3989.1,3988.7,0.7568]
[1733554215563,2.13112001,3989.2,3988.7,0.7568]
[1733554215771,0.86545176,3989.1,3988.7,0.7568]
[1733554215951,2.13112001,3989.2,3988.7,0.7568]
[1733554216172,0.86545765,3989.1,3988.7,0.7568]
[1733554216369,0.86576099,3989.0,3988.7,0.7568]
[1733554216680,1.04554785,3989.1,3988.7,2.51174]
[1733554216849,0.86576253,3989.0,3988.7,2.51174]
[1733554217051,2.13112001,3989.2,3988.7,2.51174]
[1733554217274,3.20994607,3989.1,3988.7,2.51174]
[1733554217480,2.16439822,3989.0,3988.7,2.51174]
[1733554217785,0.86575929,3988.9,3988.7,2.51174]
[1733554218081,1.04554785,3989.1,3988.7,2.51174]
[1733554218278,2.16521986,3989.0,3988.7,2.51174]
[1733554218480,0.86608794,3988.9,3988.7,2.51174]
[1733554218782,1.04554785,3989.0,3988.7,0.7568]
[1733554218992,0.86625184,3988.9,3988.7,0.7568]
[1733554219163,1.04554785,3989.0,3988.7,0.7568]
[1733554219345,2.16596751,3988.9,3988.7,0.7568]
[1733554219548,1.04554785,3989.0,3988.7,0.7568]
[1733554219768,2.16617108,3988.9,3988.7,0.7568]
[1733554219957,0.86646843,3988.8,3988.7,0.7568]
[1733554220157,0.86646567,3988.8,3988.7,0.7568]
[1733554221595,0.86646567,3988.8,3988.7,2.51175]
[1733554221893,1.04554785,3989.0,3988.7,1.007975]
[1733554222056,0.86676218,3988.9,3988.8,1.75491]
[1733554222259,0.86676242,3988.9,3988.8,1.75491]
[1733554222479,0.86676242,3988.9,3988.8,2.54161]
[1733554222683,1.04554785,3989.1,3988.8,0.7867]
[1733554222866,0.86684876,3989.0,3988.9,1.75486]
[1733554223058,0.86684876,3989.0,3988.9,2.0341335]
[1733554223478,2.16728194,3989.0,3988.9,2.0341335]
[1733554223687,0.86684876,3989.0,3988.9,2.0341335]
[1733554225101,2.16730505,3989.0,3988.9,2.0341335]
[1733554225463,0.86684876,3989.0,3988.9,2.0341335]
[1733554226989,1.04554785,3989.3,3988.9,0.2792735]
[1733554227298,1.04554785,3989.3,3989.2,1.75473]
[1733554227520,3.21291903,3989.3,3989.2,1.75473]
[1733554227805,2.16737118,3989.3,3989.2,1.75473]
[1733554228174,3.21291903,3989.3,3989.2,1.75473]
[1733554230811,3.21291903,3989.3,3988.8,0.7867]
[1733554230812,2.16737118,3989.3,3989.0,1.75481]
[1733554231008,3.21586083,3989.2,3989.0,1.75481]
[1733554231220,2.16737118,3989.1,3989.0,1.75481]
[1733554231721,2.16747846,3989.1,3989.0,1.75481]
[1733554232020,3.21596811,3989.1,3988.8,2.5416]
[1733554232224,3.21596811,3989.0,3988.8,2.5416]
[1733554232384,2.16747846,3988.9,3988.8,2.5416]
[1733554232586,2.21877135,3988.9,3988.8,2.5416]
[1733554234004,0.91828427,3988.9,3988.8,2.5416]
[1733554234515,0.05129289,3988.9,3988.8,2.5416]
[1733554234722,0.86707557,3988.9,3988.8,0.7867]
[1733554234931,0.91819271,3988.9,3988.8,2.54161]
[1733554235630,0.91819271,3988.9,3987.8,4.38323165]
[1733554235631,0.0697,3988.8,3987.3,2.09792559]
[1733554235791,9.09879672,3988.9,3986.8,1.75578]
[1733554235792,1.08557216,3987.9,3987.6,1.75543]
[1733554236293,0.05086956,3987.8,3987.6,1.75543]
[1733554237704,0.05086956,3987.8,3987.7,1.75539]
[1733554238889,0.05086956,3987.8,3987.5,1.75548]
[1733554239096,1.08557216,3987.6,3987.5,1.75548]
[1733554239302,1.1356828,3987.6,3987.5,1.75548]
[1733554240434,1.1356828,3987.6,3986.8,0.8225]
[1733554240599,1.1356828,3987.6,3987.3,1.75555]
[1733554240923,1.1356828,3987.6,3986.8,0.8225]
[1733554241123,1.1356828,3987.6,3987.4,1.75552]
[1733554241745,1.08557216,3987.6,3987.4,1.75552]
[1733554241893,0.04985868,3987.5,3987.4,1.75552]
[1733554242534,0.04985868,3987.5,3986.9,1.75575]
[1733554242924,0.0697,3987.1,3986.4,0.8225]
[1733554243122,1.08557216,3986.9,3986.4,0.8225]
[1733554243308,1.08557216,3986.9,3986.7,1.75582]
[1733554243635,0.0697,3987.1,3986.9,1.75575]
[1733554243927,1.08557216,3987.2,3986.9,1.75575]
[1733554245129,1.08557216,3987.2,3986.4,0.8225]
[1733554245332,1.08557216,3987.2,3987.0,1.75569]
[1733554246240,1.08557216,3987.7,3987.3,1.75553]
[1733554246402,1.30594419,3987.7,3987.3,1.75553]
[1733554248398,1.30594419,3987.7,3986.4,0.8225]
[1733554248399,1.08557216,3987.4,3987.1,1.75564]
[1733554248905,1.08557216,3987.4,3986.6,1.75588]
[1733554249221,1.08557216,3987.4,3987.0,1.75569]
[1733554249795,0.0697,3987.3,3987.0,1.75569]
[1733554250238,0.0697,3987.3,3986.8,1.75578]
[1733554250439,0.0697,3987.3,3986.4,2.57843]
[1733554250440,0.0697,3987.3,3986.9,1.75574]
[1733554250754,0.0697,3987.3,3986.4,2.57843]
[1733554250755,1.08557216,3987.1,3986.4,2.57843]
[1733554251223,1.08557216,3987.1,3984.8,4.47550512]
[1733554251224,0.0697,3986.4,3984.3,0.8225]
[1733554251433,1.08557216,3985.8,3984.6,1.75676]
[1733554251739,1.08557216,3985.8,3985.5,1.75634]
[1733554252097,0.04900884,3985.7,3985.5,1.75634]
[1733554252342,1.08557216,3985.8,3985.5,1.75634]
[1733554252503,2.35587714,3986.3,3985.5,1.75634]
[1733554252702,0.29134704,3986.2,3985.5,1.75634]
[1733554253728,0.29134704,3986.2,3985.3,1.75645]
[1733554253926,0.0697,3986.1,3985.3,1.75645]
[1733554254434,0.0697,3986.1,3985.0,1.75655]
[1733554254435,0.04870943,3986.0,3985.0,1.75655]
[1733554254599,0.04870943,3986.0,3985.1,1.75653]
[1733554254941,2.35587714,3985.8,3985.1,1.75653]
[1733554255301,0.04858441,3985.7,3985.1,1.75653]
[1733554257342,0.04858441,3985.7,3984.5,0.8225]
[1733554257525,0.04858441,3985.7,3985.2,1.75649]
[1733554257725,0.04858441,3985.7,3985.3,1.75645]
[1733554257906,2.35587714,3985.8,3985.3,1.75645]
[1733554258105,0.04851534,3985.7,3985.3,1.75645]
[1733554258418,2.35587714,3985.8,3985.1,0.8013]
[1733554258722,0.04849118,3985.7,3985.5,1.75636]
[1733554258943,2.35587714,3985.8,3985.5,1.75636]
[1733554259140,0.04846675,3985.6,3985.5,1.75636]
[1733554259434,2.35587714,3985.8,3985.5,1.75636]
[1733554259638,0.04846675,3985.6,3985.5,1.75636]
[1733554259840,2.35587714,3985.8,3985.5,1.75636]
[1733554260041,0.04846675,3985.6,3985.5,1.75636]
[1733554260244,2.35587714,3985.8,3985.5,1.75636]
[1733554260406,0.04846675,3985.6,3985.5,1.75636]
[1733554261051,0.0697,3986.1,3985.1,0.8013]
[1733554261205,0.04846675,3985.6,3985.2,0.28087435]
[1733554261409,0.04846675,3985.6,3985.2,0.255785]
[1733554261652,0.0697,3986.5,3986.0,1.75612]
[1733554261950,0.0697,3986.5,3986.0,1.75613]
[1733554262152,0.01864143,3987.3,3986.0,1.75614]
[1733554262153,2.35587714,3987.0,3986.0,1.75614]
[1733554262450,0.23558771,3986.9,3986.4,1.75594]
[1733554262631,0.23558771,3986.9,3986.0,1.75614]
[1733554262829,2.35587714,3987.1,3986.5,1.75591]
[1733554265549,2.35587714,3987.1,3986.0,1.75614]
[1733554265550,0.0486361,3987.0,3986.3,1.75601]
[1733554265750,0.0697,3986.6,3986.0,1.7561]
[1733554266110,0.0484692,3986.5,3986.0,1.7561]
[1733554267744,0.0484692,3986.5,3986.1,1.75609]
[1733554268115,0.0697,3986.6,3986.1,1.75609]
[1733554268315,0.0697,3986.6,3986.4,1.75596]
[1733554270722,2.35587714,3986.7,3986.4,1.75596]
[1733554271043,0.0697,3986.9,3986.8,1.75579]
[1733554271250,1.57267225,3988.2,3986.4,0.8013]
[1733554271251,0.0697,3987.3,3987.2,1.75561]
[1733554271551,0.0697,3987.7,3987.2,1.75561]
[1733554271738,0.24255771,3987.6,3987.2,1.75561]
[1733554273416,0.0697,3987.7,3987.2,1.75561]
[1733554274619,2.35587714,3987.9,3987.3,1.75556]
[1733554274818,2.35587714,3987.9,3986.8,0.7798]
[1733554275040,2.35587714,3987.9,3987.1,1.75566]
[1733554278266,2.35587714,3987.9,3986.8,0.7798]
[1733554278422,0.23558771,3987.8,3986.9,1.75574]
[1733554278961,0.23558771,3987.8,3987.1,1.75562]
[1733554280624,0.04631235,3987.7,3987.1,1.75562]
[1733554281128,0.04631235,3987.7,3987.4,1.75551]
[1733554281567,2.35587714,3988.1,3987.4,1.75551]
[1733554281876,0.04629831,3987.6,3987.4,1.75551]
[1733554282035,2.35587714,3988.1,3987.4,1.75551]
[1733554282237,0.04628771,3987.5,3987.4,1.75551]
[1733554282435,2.35587714,3988.1,3987.4,1.75551]
[1733554282652,0.04628771,3987.5,3987.4,1.75551]
[1733554282960,0.04633601,3987.5,3986.8,2.53555]
[1733554283181,2.42557714,3987.6,3986.8,1.75575]
[1733554283334,0.04631161,3987.4,3986.8,1.75575]
[1733554283940,2.35587714,3987.2,3986.5,0.7798]
[1733554284170,0.06489363,3987.1,3986.3,1.756]
[1733554284354,0.0697,3987.0,3986.3,1.756]
[1733554284887,0.04600328,3986.9,3986.3,1.756]
[1733554285385,0.04600328,3986.9,3986.0,0.8112]
[1733554285979,0.04600328,3986.9,3986.3,1.75601]
[1733554287154,0.04600328,3986.9,3986.1,1.75608]
[1733554288743,0.86333933,3986.8,3986.1,1.75608]
[1733554288949,0.04595446,3986.7,3986.1,1.75608]
[1733554289252,0.01864143,3986.7,3985.8,1.75619]
[1733554289567,0.04593006,3986.6,3985.8,1.75619]
[1733554289973,0.0697,3986.5,3985.8,1.75619]
[1733554290181,0.08834143,3986.5,3985.8,1.75619]
[1733554290477,0.0454533,3986.4,3985.9,1.75618]
[1733554291040,0.06409473,3986.4,3985.6,2.56748]
[1733554291236,0.06409473,3986.4,3985.6,1.75628]
[1733554291478,2.41997187,3986.4,3985.6,1.75628]
[1733554291682,1.21745234,3986.3,3985.6,1.75628]
[1733554291974,0.06390437,3986.2,3985.6,1.75628]
[1733554292391,0.06390437,3986.2,3985.4,1.75641]
[1733554292889,0.04526294,3986.2,3985.3,0.8112]
[1733554293091,0.04526294,3986.2,3985.3,2.56765]
[1733554293278,0.86352371,3986.1,3985.3,2.56765]
[1733554293590,0.04507605,3986.0,3985.3,1.24362]
[1733554293945,1.04844816,3986.3,3985.3,1.24362]
[1733554294141,0.90863665,3986.2,3985.3,1.24362]
[1733554294450,0.04512488,3986.2,3985.3,1.24362]
[1733554294853,0.04512488,3986.2,3985.6,1.7563]
[1733554295059,3.65122892,3986.4,3985.6,1.7563]
[1733554295289,0.04510046,3986.1,3985.6,1.7563]
[1733554295456,2.99008207,3986.4,3985.6,1.7563]
[1733554295691,0.8635976,3986.3,3985.6,1.7563]
[1733554295893,0.04512488,3986.2,3985.6,1.7563]
[1733554296228,2.99008207,3986.4,3985.6,1.7563]
[1733554296519,0.04510046,3986.1,3985.6,1.7563]
[1733554296721,3.65131554,3986.4,3985.3,0.8112]
[1733554296935,2.35587714,3986.4,3985.6,1.75629]
[1733554297084,0.04517689,3986.3,3985.6,1.75629]
[1733554297691,0.04517689,3986.3,3985.3,0.8112]
[1733554297692,0.04517689,3986.3,3985.7,1.75625]
[1733554301335,0.04517689,3986.3,3985.3,0.8112]
[1733554301497,0.04517689,3986.3,3985.8,1.75623]
[1733554302443,0.04517689,3986.3,3985.5,1.75633]
[1733554304331,0.04517689,3986.3,3985.3,0.8112]
[1733554304646,0.04517689,3986.3,3985.5,1.75633]
[1733554304853,0.04517689,3986.3,3985.6,1.75631]
[1733554305553,0.04517689,3986.3,3985.7,1.75627]
[1733554305907,1.29597445,3986.4,3985.7,1.75627]
[1733554306113,0.04513894,3986.3,3985.7,1.75627]
[1733554308658,1.1322817,3986.3,3985.7,1.75627]
[1733554315960,1.1322817,3986.3,3985.5,1.75635]
[1733554317230,1.1322817,3986.3,3985.6,1.75631]
[1733554317431,1.1322817,3986.3,3985.4,1.7564]
[1733554317762,0.22504299,3986.2,3985.4,1.7564]
[1733554318061,1.08714276,3986.0,3985.2,1.75649]
[1733554318229,0.01864143,3985.9,3985.2,1.75649]
[1733554318432,0.06235627,3985.9,3985.2,1.75649]
[1733554318637,0.04371484,3985.9,3985.2,1.75649]
[1733554319021,0.04371484,3985.9,3985.3,1.75643]
[1733554323041,0.0697,3985.8,3985.3,1.75643]
[1733554323247,1.08714276,3985.4,3984.9,1.7566]
[1733554323632,0.04331974,3985.3,3984.9,1.7566]
[1733554325427,0.04331974,3985.3,3984.7,0.7805]
[1733554325635,0.04331974,3985.3,3984.7,2.53721]
[1733554327480,1.08714276,3985.0,3984.4,0.7805]
[1733554327633,0.0697,3985.2,3983.6,2.22516843]
[1733554327634,1.08714276,3984.7,3984.0,0.7805]
[1733554327829,1.08714276,3984.7,3984.2,1.75689]
[1733554328143,0.04303823,3984.6,3984.2,1.75689]
[1733554328471,0.0697,3984.5,3983.7,1.75711]
[1733554328669,0.0697,3984.5,3983.7,2.010871]
[1733554328978,0.04275798,3984.4,3984.0,1.75701]
[1733554329143,0.04275798,3984.4,3983.7,0.253761]
[1733554329326,0.04275798,3984.4,3983.9,1.75705]
[1733554331741,0.04275798,3984.4,3983.6,1.75719]
[1733554331742,1.12990074,3984.4,3983.6,1.75719]
[1733554332448,0.01864143,3984.3,3983.6,1.75719]
[1733554332646,1.12990074,3984.4,3983.6,1.75719]
[1733554332836,0.04238094,3984.2,3983.7,1.75712]
[1733554333038,0.04240537,3984.3,3983.7,1.75712]
[1733554333253,0.0423565,3984.1,3983.7,1.75712]
[1733554333461,0.04238094,3984.2,3983.7,1.75712]
[1733554333678,0.04233206,3984.0,3983.7,1.75712]
[1733554333995,0.04230761,3983.9,3983.8,1.7571]
[1733554334300,0.04230761,3983.9,3983.8,2.81146]
[1733554334449,0.0697,3985.1,3984.6,1.75675]
[1733554334882,0.04219459,3985.0,3984.4,1.75685]
[1733554335478,0.04219459,3985.0,3984.0,1.75701]
[1733554335479,1.08714276,3984.9,3984.0,1.75701]
[1733554335690,1.08714276,3984.9,3984.3,1.75686]
[1733554335988,0.04209559,3984.8,3984.4,1.75685]
[1733554336185,0.04209559,3984.8,3984.0,1.75701]
[1733554336772,0.0697,3985.1,3984.0,1.75701]
[1733554336946,0.04229301,3985.0,3984.0,1.75701]
[1733554337144,0.54226269,3985.0,3984.3,1.75688]
[1733554337388,0.0697,3984.9,3984.3,1.75688]
[1733554337550,0.06088558,3984.8,3984.3,1.75688]
[1733554337952,0.06088558,3984.8,3983.2,0.0459676]
[1733554337953,0.0697,3984.7,3983.3,0.8006]
[1733554338153,0.0697,3984.7,3984.1,1.75698]
[1733554338154,0.04219529,3984.6,3984.1,1.75698]
[1733554339852,0.04219529,3984.6,3984.2,1.75693]
[1733554342306,0.04219529,3984.6,3984.5,1.7568]
[1733554342598,0.0697,3984.9,3984.5,1.7568]
[1733554342961,0.04219579,3984.8,3984.5,1.7568]
[1733554344097,0.04219579,3984.8,3984.6,1.75674]
[1733554344260,0.04219579,3984.8,3984.7,1.75671]
[1733554344467,0.04219579,3984.8,3984.7,1.932381]
[1733554344700,0.0697,3985.2,3984.8,1.75667]
[1733554344915,0.0697,3985.6,3984.4,0.8006]
[1733554345410,0.0404363,3985.5,3985.1,1.75652]
[1733554346698,0.0404363,3985.5,3984.8,1.75665]
[1733554346905,0.0697,3985.4,3984.5,1.75676]
[1733554347399,0.0697,3985.2,3984.3,1.75689]
[1733554347599,1.47163124,3985.1,3984.3,1.75689]
[1733554347764,1.47163124,3985.1,3984.1,0.8006]
[1733554347765,0.60795023,3985.1,3984.1,0.8006]
[1733554348164,0.04046994,3985.1,3984.1,0.8256972]
[1733554348386,0.04046994,3985.1,3984.1,0.8006]
[1733554348974,0.04046994,3985.1,3984.5,1.7568]
[1733554350467,0.04046994,3985.1,3984.6,1.75674]
[1733554353062,0.04046994,3985.1,3984.1,0.8006]
[1733554353477,0.28590418,3985.1,3984.1,0.8006]
[1733554353769,0.04046994,3985.1,3984.1,0.8006]
[1733554354279,0.04046994,3985.1,3984.4,1.75684]